fUSD/lending_fUSD_20240626
["ID","MTS","AMOUNT","RATE_DAILY","PERIOD"]
[330450852,1719421074330,-586.07,0.00044109,120]
[330450853,1719421074367,-500.0,0.00044109,120]
[330450854,1719421074404,-2242.56,0.00044109,120]
[330450855,1719421074443,-500.0,0.00044109,120]
[330450856,1719421074483,-500.0,0.00044109,120]
[330450857,1719421074521,-598.46,0.00044109,120]
[330450858,1719421074560,-500.0,0.00044109,120]
[330450859,1719421074600,-579.22,0.00044109,120]
[330450860,1719421074640,-500.0,0.00044109,120]
[330450861,1719421074681,-500.0,0.00044109,120]
[330450862,1719421074722,-524.78955379,0.00044109,120]
[330450863,1719421075107,-500.0,0.00044109,120]
[330450864,1719421075149,-500.0,0.00044109,120]
[330450865,1719421075188,-500.0,0.00044109,120]
[330450866,1719421075228,-564.71,0.00044109,120]
[330450867,1719421075268,-834.1,0.00044109,120]
[330450868,1719421075307,-500.0,0.00044109,120]
[330450869,1719421075345,-500.0,0.00044109,120]
[330450870,1719421075384,-510.30599207,0.00044109,120]
[330450871,1719421075424,-1127.2,0.00044109,120]
[330450872,1719421075462,-500.0,0.00044109,120]
[330450873,1719421075500,-500.0,0.00044109,120]
[330450874,1719421075540,-500.0,0.00044109,120]
[330450875,1719421075581,-500.0,0.00044109,120]
[330450876,1719421075623,-500.0,0.00044109,120]
[330450877,1719421075662,-555.12,0.00044109,120]
[330450878,1719421075702,-5000.0,0.00044109,120]
[330450879,1719421075746,-608.54,0.00044109,120]
[330450880,1719421075789,-500.0,0.00044109,120]
[330450881,1719421075831,-500.0,0.00044109,120]
[330450882,1719421075872,-500.0,0.00044109,120]
[330450883,1719421075912,-945.3,0.00044109,120]
[330450884,1719421075951,-500.0,0.00044109,120]
[330450885,1719421075990,-611.69322936,0.00044109,120]
[330450886,1719421076029,-677.4,0.00044109,120]
[330450887,1719421076070,-500.0,0.00044109,120]
[330450888,1719421076110,-500.0,0.00044109,120]
[330450889,1719421076151,-500.0,0.00044109,120]
[330450890,1719421076190,-500.0,0.00044109,120]
[330450891,1719421076232,-500.0,0.00044109,120]
[330450892,1719421076272,-500.0,0.00044109,120]
[330450893,1719421076309,-500.0,0.00044109,120]
[330450894,1719421076347,-1337.45,0.00044109,120]
[330450895,1719421076386,-504.27581299,0.00044109,120]
[330450896,1719421076423,-558.63,0.00044109,120]
[330450897,1719421076461,-555.92,0.00044109,120]
[330450898,1719421076500,-500.0,0.00044109,120]
[330450899,1719421076539,-2843.14,0.00044109,120]
[330450900,1719421076578,-542.94,0.00044109,120]
[330450901,1719421076619,-500.0,0.00044109,120]
[330450902,1719421076657,-500.0,0.00044109,120]
[330450903,1719421076695,-506.78758114,0.00044109,120]
[330450904,1719421076736,-500.0,0.00044109,120]
[330450905,1719421076778,-500.0,0.00044109,120]
[330450906,1719421076818,-500.0,0.00044109,120]
[330450907,1719421076857,-1395.76,0.00044109,120]
[330450908,1719421076898,-502.49,0.00044109,120]
[330450909,1719421076935,-1069.09,0.00044109,120]
[330450910,1719421076974,-500.0,0.00044109,120]
[330450911,1719421077012,-641.32,0.00044109,120]
[330450912,1719421077051,-500.0,0.00044109,120]
[330450913,1719421077090,-506.92197069,0.00044109,120]
[330450914,1719421077130,-500.0,0.00044109,120]
[330450915,1719421077170,-500.0,0.00044109,120]
[330450916,1719421077210,-500.0,0.00044109,120]
[330450917,1719421077250,-500.0,0.00044109,120]
[330450918,1719421077290,-500.0,0.00044109,120]
[330450919,1719421077332,-2036.66,0.00044109,120]
[330450920,1719421077374,-500.0,0.00044109,120]
[330450921,1719421077414,-2275.25,0.00044109,120]
[330450922,1719421077453,-658.19,0.00044109,120]
[330450923,1719421077492,-500.0,0.00044109,120]
[330450924,1719421077529,-1199.34,0.00044109,120]
[330450925,1719421077566,-500.0,0.00044109,120]
[330450926,1719421077604,-500.0,0.00044109,120]
[330450927,1719421077644,-500.0,0.00044109,120]
[330450928,1719421077681,-500.0,0.00044109,120]
[330450929,1719421077721,-500.0,0.00044109,120]
[330450930,1719421077760,-1789.52,0.00044109,120]
[330450931,1719421077798,-500.0,0.00044109,120]
[330450932,1719421077835,-1284.61,0.00044109,120]
[330450933,1719421077872,-500.0,0.00044109,120]
[330450934,1719421077909,-500.0,0.00044109,120]
[330450935,1719421078043,-500.0,0.00044109,120]
[330450936,1719421078082,-500.0,0.00044109,120]
[330450937,1719421078118,-846.26,0.00044109,120]
[330450938,1719421078155,-845.51,0.00044109,120]
[330450939,1719421078191,-695.35,0.00044109,120]
[330450940,1719421078227,-1488.49,0.00044109,120]
[330450941,1719421078262,-520.64,0.00044109,120]
[330450942,1719421078296,-500.0,0.00044109,120]
[330450943,1719421078334,-500.0,0.00044109,120]
[330450944,1719421078371,-500.0,0.00044109,120]
[330450945,1719421078406,-725.83,0.00044109,120]
[330450946,1719421078442,-1158.88,0.00044109,120]
[330450947,1719421078477,-500.0,0.00044109,120]
[330450948,1719421078512,-500.0,0.00044109,120]
[330450949,1719421078548,-1273.04,0.00044109,120]
[330450950,1719421078583,-1256.42,0.00044109,120]
[330450951,1719421078623,-558.9,0.00044109,120]
[330450952,1719421078666,-1329.87,0.00044109,120]
[330450953,1719421078705,-601.49226305,0.00044109,120]
[330450954,1719421078748,-500.0,0.00044109,120]
[330450955,1719421078789,-500.0,0.00044109,120]
[330450956,1719421078829,-513.56379347,0.00044109,120]
[330450957,1719421078869,-500.0,0.00044109,120]
[330450958,1719421078907,-500.0,0.00044109,120]
[330450959,1719421078946,-500.0,0.00044109,120]
[330450960,1719421078988,-1597.38,0.00044109,120]
[330450961,1719421079031,-500.0,0.00044109,120]
[330450962,1719421079074,-500.0,0.00044109,120]
[330450963,1719421079112,-580.05,0.00044109,120]
[330450964,1719421079152,-500.0,0.00044109,120]
[330450965,1719421079190,-500.0,0.00044109,120]
[330450966,1719421079228,-815.1,0.00044109,120]
[330450967,1719421079265,-1018.32,0.00044109,120]
[330450968,1719421079304,-32583.07,0.00044109,120]
[330450969,1719421079341,-1044.29,0.00044109,120]
[330450970,1719421079376,-500.0,0.00044109,120]
[330450971,1719421079412,-722.06,0.00044109,120]
[330450972,1719421079447,-500.0,0.00044109,120]
[330450973,1719421079483,-756.86,0.00044109,120]
[330450974,1719421079519,-500.0,0.00044109,120]
[330450975,1719421079556,-500.0,0.00044109,120]
[330450976,1719421079592,-500.0,0.00044109,120]
[330450977,1719421079633,-500.0,0.00044109,120]
[330450978,1719421079671,-500.0,0.00044109,120]
[330450979,1719421079710,-500.0,0.00044109,120]
[330450980,1719421079752,-507.24883091,0.00044109,120]
[330450981,1719421079793,-500.0,0.00044109,120]
[330450982,1719421079832,-500.0,0.00044109,120]
[330450983,1719421079868,-500.0,0.00044109,120]
[330450984,1719421079906,-500.0,0.00044109,120]
[330450985,1719421079943,-500.0,0.00044109,120]
[330450986,1719421079983,-500.0,0.00044109,120]
[330450987,1719421080024,-500.0,0.00044109,120]
[330450988,1719421080066,-500.0,0.00044109,120]
[330450989,1719421080107,-500.0,0.00044109,120]
[330450990,1719421080148,-500.0,0.00044109,120]
[330450991,1719421080192,-1425.67,0.00044109,120]
[330450992,1719421080234,-500.0,0.00044109,120]
[330450993,1719421080274,-500.0,0.00044109,120]
[330450994,1719421080315,-500.0,0.00044109,120]
[330450995,1719421080356,-500.0,0.00044109,120]
[330450996,1719421080397,-500.0,0.00044109,120]
[330450997,1719421080435,-526.21890775,0.00044109,120]
[330450998,1719421080477,-500.0,0.00044109,120]
[330450999,1719421080518,-500.0,0.00044109,120]
[330451000,1719421080558,-500.0,0.00044109,120]
[330451001,1719421080600,-500.0,0.00044109,120]
[330451002,1719421080640,-1927.14,0.00044109,120]
[330451003,1719421080681,-500.0,0.00044109,120]
[330451004,1719421080723,-500.0,0.00044109,120]
[330451005,1719421080762,-1796.71,0.00044109,120]
[330451006,1719421080801,-500.0,0.00044109,120]
[330451007,1719421080841,-500.0,0.00044109,120]
[330451008,1719421080878,-637.05,0.00044109,120]
[330451009,1719421080916,-591.52,0.00044109,120]
[330451010,1719421080956,-1259.25,0.00044109,120]
[330451011,1719421080995,-500.0,0.00044109,120]
[330451012,1719421081036,-500.0,0.00044109,120]
[330451013,1719421081075,-718.33,0.00044109,120]
[330451014,1719421081115,-500.0,0.00044109,120]
[330451015,1719421081155,-500.0,0.00044109,120]
[330451016,1719421081194,-500.0,0.00044109,120]
[330451017,1719421081233,-1360.23,0.00044109,120]
[330451018,1719421081272,-500.0,0.00044109,120]
[330451019,1719421081312,-500.0,0.00044109,120]
[330451020,1719421081351,-724.96,0.00044109,120]
[330451021,1719421081390,-500.0,0.00044109,120]
[330451022,1719421081434,-500.0,0.00044109,120]
[330451023,1719421081474,-500.0,0.00044109,120]
[330451024,1719421081517,-500.0,0.00044109,120]
[330451025,1719421081558,-500.0,0.00044109,120]
[330451026,1719421081599,-500.0,0.00044109,120]
[330451027,1719421081641,-1233.89,0.00044109,120]
[330451028,1719421081683,-2331.46,0.00044109,120]
[330451029,1719421081723,-781.98,0.00044109,120]
[330451030,1719421081761,-500.0,0.00044109,120]
[330451031,1719421081800,-344.91640955,0.00044109,120]
[330451032,1719421081839,-565.84,0.00044109,120]
[330451033,1719421081877,-1495.97,0.00044109,120]
[330451034,1719421081918,-500.0,0.00044109,120]
[330451035,1719421081957,-2041.16,0.00044109,120]
[330451036,1719421082000,-257.53626763,0.00044109,120]
[330451037,1719421082038,-500.0,0.00044109,120]
[330451038,1719421082077,-946.04,0.00044109,120]
[330451039,1719421082115,-796.02,0.00044109,120]
[330451040,1719421082280,-500.0,0.00044109,120]
[330451041,1719421082319,-500.0,0.00044109,120]
[330451042,1719421082356,-500.0,0.00044109,120]
[330451043,1719421082391,-560.74,0.00044109,120]
[330451044,1719421082430,-500.0,0.00044109,120]
[330451045,1719421082467,-500.0,0.00044109,120]
[330451046,1719421082504,-2360.28,0.00044109,120]
[330451047,1719421082540,-500.0,0.00044109,120]
[330451048,1719421082577,-1242.4,0.00044109,120]
[330451049,1719421082616,-500.0,0.00044109,120]
[330451050,1719421082654,-500.0,0.00044109,120]
[330451051,1719421082694,-500.0,0.00044109,120]
[330451052,1719421082738,-500.0,0.00044109,120]
[330451053,1719421082779,-859.94,0.00044109,120]
[330451054,1719421082816,-500.0,0.00044109,120]
[330451055,1719421082854,-783.82,0.00044109,120]
[330451056,1719421082893,-555.36514209,0.00044109,120]
[330451057,1719421082930,-500.0,0.00044109,120]
[330451058,1719421082969,-500.0,0.00044109,120]
[330451059,1719421083009,-500.0,0.00044109,120]
[330451060,1719421083047,-500.0,0.00044109,120]
[330451061,1719421083086,-560.96,0.00044109,120]
[330451062,1719421083125,-1053.76,0.00044109,120]
[330451063,1719421083161,-500.0,0.00044109,120]
[330451064,1719421083199,-784.35,0.00044109,120]
[330451065,1719421083236,-500.0,0.00044109,120]
[330451066,1719421083273,-500.0,0.00044109,120]
[330451067,1719421083308,-500.0,0.00044109,120]
[330451068,1719421083345,-1323.63,0.00044109,120]
[330451069,1719421083381,-2110.61,0.00044109,120]
[330451070,1719421083416,-500.0,0.00044109,120]
[330451071,1719421083452,-500.0,0.00044109,120]
[330451072,1719421083492,-150.0,0.00044109,120]
[330451073,1719421083529,-516.48,0.00044109,120]
[330451074,1719421083565,-500.0,0.00044109,120]
[330451075,1719421083603,-500.0,0.00044109,120]
[330451076,1719421083640,-500.0,0.00044109,120]
[330451077,1719421083678,-2773.5,0.00044109,120]
[330451078,1719421083720,-500.0,0.00044109,120]
[330451079,1719421083758,-500.0,0.00044109,120]
[330451080,1719421083795,-202.29124999,0.00044109,120]
[330451081,1719421083833,-500.0,0.00044109,120]
[330451082,1719421083871,-686.8,0.00044109,120]
[330451083,1719421083911,-500.0,0.00044109,120]
[330451084,1719421083951,-500.0,0.00044109,120]
[330451085,1719421083994,-500.0,0.00044109,120]
[330451086,1719421084038,-500.0,0.00044109,120]
[330451087,1719421084082,-1213.27,0.00044109,120]
[330451088,1719421084125,-500.0,0.00044109,120]
[330451089,1719421084164,-670.38,0.00044109,120]
[330451090,1719421084206,-625.62311212,0.00044109,120]
[330451091,1719421084249,-500.0,0.00044109,120]
[330451092,1719421084291,-500.0,0.00044109,120]
[330451093,1719421084333,-500.0,0.00044109,120]
[330451094,1719421084373,-500.0,0.00044109,120]
[330451095,1719421084412,-500.0,0.00044109,120]
[330451096,1719421084454,-867.74,0.00044109,120]
[330451097,1719421084495,-1051.07,0.00044109,120]
[330451098,1719421084535,-500.0,0.00044109,120]
[330451099,1719421084575,-687.11,0.00044109,120]
[330451100,1719421084614,-500.0,0.00044109,120]
[330451101,1719421084654,-500.0,0.00044109,120]
[330451102,1719421084693,-753.11,0.00044109,120]
[330451103,1719421084732,-500.0,0.00044109,120]
[330451104,1719421084769,-500.0,0.00044109,120]
[330451105,1719421084807,-500.0,0.00044109,120]
[330451106,1719421084849,-500.0,0.00044109,120]
[330451107,1719421084889,-500.0,0.00044109,120]
[330451108,1719421084927,-500.0,0.00044109,120]
[330451109,1719421084964,-500.0,0.00044109,120]
[330451110,1719421085002,-500.0,0.00044109,120]
[330451111,1719421085049,-500.0,0.00044109,120]
[330451112,1719421085091,-2291.18,0.00044109,120]
[330451113,1719421085132,-1599.56,0.00044109,120]
[330451114,1719421085171,-500.0,0.00044109,120]
[330451115,1719421085212,-500.0,0.00044109,120]
[330451116,1719421085255,-500.0,0.00044109,120]
[330451117,1719421085293,-1119.37,0.00044109,120]
[330451118,1719421085332,-1902.3,0.00044109,120]
[330451119,1719421085374,-527.44332751,0.00044109,120]
[330451120,1719421085415,-631.94,0.00044109,120]
[330451121,1719421085456,-1280.38,0.00044109,120]
[330451122,1719421085498,-500.0,0.00044109,120]
[330451123,1719421085541,-500.0,0.00044109,120]
[330451124,1719421085584,-634.34,0.00044109,120]
[330451125,1719421085631,-500.0,0.00044109,120]
[330451126,1719421085676,-754.48,0.00044109,120]
[330451127,1719421085722,-4309.15,0.00044109,120]
[330451128,1719421085765,-500.0,0.00044109,120]
[330451129,1719421086327,-952.44,0.00044109,120]
[330451130,1719421086367,-500.0,0.00044109,120]
[330451131,1719421086408,-500.0,0.00044109,120]
[330451132,1719421086447,-500.0,0.00044109,120]
[330451133,1719421086488,-500.0,0.00044109,120]
[330451134,1719421086527,-709.79,0.00044109,120]
[330451135,1719421086564,-1151.75,0.00044109,120]
[330451136,1719421086604,-500.0,0.00044109,120]
[330451137,1719421086644,-500.0,0.00044109,120]
[330451138,1719421086684,-500.0,0.00044109,120]
[330451139,1719421086725,-500.0,0.00044109,120]
[330451140,1719421086764,-1306.75,0.00044109,120]
[330451141,1719421086803,-500.0,0.00044109,120]
[330451142,1719421086841,-500.0,0.00044109,120]
[330451143,1719421086879,-500.0,0.00044109,120]
[330451144,1719421086918,-1611.44,0.00044109,120]
[330451145,1719421086956,-500.0,0.00044109,120]
[330451146,1719421086992,-500.0,0.00044109,120]
[330451147,1719421087028,-500.0,0.00044109,120]
[330451148,1719421087066,-779.93,0.00044109,120]
[330451149,1719421087104,-500.0,0.00044109,120]
[330451150,1719421087142,-500.0,0.00044109,120]
[330451151,1719421087182,-443.66838215,0.00044109,120]
[330451152,1719421087219,-500.0,0.00044109,120]
[330451153,1719421087255,-500.0,0.00044109,120]
[330451154,1719421087292,-500.0,0.00044109,120]
[330451155,1719421087330,-631.59258631,0.00044109,120]
[330451156,1719421087370,-500.0,0.00044109,120]
[330451157,1719421087408,-500.0,0.00044109,120]
[330451158,1719421087446,-500.0,0.00044109,120]
[330451159,1719421087481,-500.0,0.00044109,120]
[330451160,1719421087518,-500.0,0.00044109,120]
[330451161,1719421087554,-611.06,0.00044109,120]
[330451162,1719421087592,-500.0,0.00044109,120]
[330451163,1719421087630,-2317.28,0.00044109,120]
[330451164,1719421087669,-500.0,0.00044109,120]
[330451165,1719421087707,-500.0,0.00044109,120]
[330451166,1719421087749,-500.0,0.00044109,120]
[330451167,1719421087789,-500.0,0.00044109,120]
[330451168,1719421087829,-500.0,0.00044109,120]
[330451169,1719421087866,-1272.87,0.00044109,120]
[330451170,1719421087903,-500.0,0.00044109,120]
[330451171,1719421087942,-609.18,0.00044109,120]
[330451172,1719421087980,-500.0,0.00044109,120]
[330451173,1719421088019,-500.0,0.00044109,120]
[330451174,1719421088058,-500.0,0.00044109,120]
[330451175,1719421088095,-500.0,0.00044109,120]
[330451176,1719421088132,-1745.12,0.00044109,120]
[330451177,1719421088169,-500.0,0.00044109,120]
[330451178,1719421088206,-500.0,0.00044109,120]
[330451179,1719421088243,-500.0,0.00044109,120]
[330451180,1719421088279,-829.37,0.00044109,120]
[330451181,1719421088318,-500.0,0.00044109,120]
[330451182,1719421088366,-500.0,0.00044109,120]
[330451183,1719421088405,-500.0,0.00044109,120]
[330451184,1719421088451,-1172.89,0.00044109,120]
[330451185,1719421088497,-1790.25,0.00044109,120]
[330451186,1719421088543,-934.43,0.00044109,120]
[330451187,1719421088582,-500.0,0.00044109,120]
[330451188,1719421088632,-500.0,0.00044109,120]
[330451189,1719421088679,-500.0,0.00044109,120]
[330451190,1719421088726,-2177.01,0.00044109,120]
[330451191,1719421088774,-500.0,0.00044109,120]
[330451192,1719421088821,-558.98,0.00044109,120]
[330451193,1719421088863,-740.85,0.00044109,120]
[330451194,1719421088900,-529.1,0.00044109,120]
[330451195,1719421088946,-719.73,0.00044109,120]
[330451196,1719421088999,-1287.88,0.00044109,120]
[330451197,1719421089053,-500.0,0.00044109,120]
[330451198,1719421089097,-500.0,0.00044109,120]
[330451199,1719421089147,-500.0,0.00044109,120]
[330451200,1719421089192,-520.22,0.00044109,120]
[330451201,1719421089372,-565.01,0.00044109,120]
[330451202,1719421089415,-500.0,0.00044109,120]
[330451203,1719421089455,-558.06428765,0.00044109,120]
[330451204,1719421089502,-500.0,0.00044109,120]
[330451205,1719421089542,-500.0,0.00044109,120]
[330451206,1719421089580,-849.63,0.00044109,120]
[330451207,1719421089620,-500.0,0.00044109,120]
[330451208,1719421089660,-1888.59,0.00044109,120]
[330451209,1719421089697,-500.0,0.00044109,120]
[330451210,1719421089736,-500.0,0.00044109,120]
[330451211,1719421089774,-500.0,0.00044109,120]
[330451212,1719421089810,-500.0,0.00044109,120]
[330451213,1719421089848,-500.0,0.00044109,120]
[330451214,1719421089886,-500.0,0.00044109,120]
[330451215,1719421089924,-500.0,0.00044109,120]
[330451216,1719421089962,-573.83,0.00044109,120]
[330451217,1719421090002,-1540.67,0.00044109,120]
[330451218,1719421090043,-497.03158213,0.00044109,120]
[330451219,1719421090082,-1825.98,0.00044109,120]
[330451220,1719421090122,-576.21,0.00044109,120]
[330451221,1719421090162,-1304.26,0.00044109,120]
[330451222,1719421090200,-3061.74,0.00044109,120]
[330451223,1719421090238,-500.0,0.00044109,120]
[330451224,1719421090276,-500.0,0.00044109,120]
[330451225,1719421090315,-500.0,0.00044109,120]
[330451226,1719421090355,-500.0,0.00044109,120]
[330451227,1719421090394,-1547.61,0.00044109,120]
[330451228,1719421090436,-500.0,0.00044109,120]
[330451229,1719421090475,-1192.32,0.00044109,120]
[330451230,1719421090515,-500.0,0.00044109,120]
[330451231,1719421090556,-548.62,0.00044109,120]
[330451232,1719421090599,-500.0,0.00044109,120]
[330451233,1719421090638,-500.0,0.00044109,120]
[330451234,1719421090676,-500.0,0.00044109,120]
[330451235,1719421090720,-951.02,0.00044109,120]
[330451236,1719421090759,-500.0,0.00044109,120]
[330451237,1719421090799,-500.0,0.00044109,120]
[330451238,1719421090837,-805.81,0.00044109,120]
[330451239,1719421090873,-500.0,0.00044109,120]
[330451240,1719421090910,-500.0,0.00044109,120]
[330451241,1719421090945,-500.0,0.00044109,120]
[330451242,1719421090982,-500.0,0.00044109,120]
[330451243,1719421091017,-500.0,0.00044109,120]
[330451244,1719421091052,-776.37,0.00044109,120]
[330451245,1719421091088,-658.92,0.00044109,120]
[330451246,1719421091124,-500.0,0.00044109,120]
[330451247,1719421091173,-3274.12,0.00044109,120]
[330451248,1719421091215,-235.53692766,0.00044109,120]
[330451249,1719421091250,-500.0,0.00044109,120]
[330451250,1719421091285,-2127.98,0.00044109,120]
[330451251,1719421091322,-500.0,0.00044109,120]
[330451252,1719421091360,-693.56,0.00044109,120]
[330451253,1719421091397,-500.0,0.00044109,120]
[330451254,1719421091432,-500.0,0.00044109,120]
[330451255,1719421091468,-500.0,0.00044109,120]
[330451256,1719421091503,-500.0,0.00044109,120]
[330451257,1719421091542,-500.0,0.00044109,120]
[330451258,1719421091579,-523.09839627,0.00044109,120]
[330451259,1719421091615,-500.0,0.00044109,120]
[330451260,1719421091652,-1529.12,0.00044109,120]
[330451261,1719421091691,-758.07,0.00044109,120]
[330451262,1719421091727,-624.20177528,0.00044109,120]
[330451263,1719421091763,-764.94,0.00044109,120]
[330451264,1719421091803,-1554.31,0.00044109,120]
[330451265,1719421091839,-500.0,0.00044109,120]
[330451266,1719421091875,-500.0,0.00044109,120]
[330451267,1719421091911,-928.13,0.00044109,120]
[330451268,1719421091946,-500.0,0.00044109,120]
[330451269,1719421091980,-500.0,0.00044109,120]
[330451270,1719421092015,-500.0,0.00044109,120]
[330451271,1719421092053,-500.0,0.00044109,120]
[330451272,1719421092087,-500.0,0.00044109,120]
[330451273,1719421092123,-507.18598889,0.00044109,120]
[330451274,1719421092162,-1537.14,0.00044109,120]
[330451275,1719421092201,-500.0,0.00044109,120]
[330451276,1719421092239,-500.0,0.00044109,120]
[330451277,1719421092276,-500.0,0.00044109,120]
[330451278,1719421092312,-500.0,0.00044109,120]
[330451279,1719421092348,-500.0,0.00044109,120]
[330451280,1719421092384,-3508.96,0.00044109,120]
[330451281,1719421092419,-500.0,0.00044109,120]
[330451282,1719421092457,-1933.55,0.00044109,120]
[330451283,1719421092493,-1613.8,0.00044109,120]
[330451284,1719421092529,-500.0,0.00044109,120]
[330451285,1719421092567,-500.0,0.00044109,120]
[330451286,1719421092608,-524.03,0.00044109,120]
[330451287,1719421092647,-500.0,0.00044109,120]
[330451288,1719421092684,-1873.3,0.00044109,120]
[330451289,1719421092726,-1032.47,0.00044109,120]
[330451290,1719421092765,-500.0,0.00044109,120]
[330451291,1719421092806,-747.37,0.00044109,120]
[330451292,1719421092845,-1348.56,0.00044109,120]
[330451293,1719421092882,-500.0,0.00044109,120]
[330451294,1719421092920,-721.49,0.00044109,120]
[330451295,1719421092960,-500.0,0.00044109,120]
[330451296,1719421092998,-500.0,0.00044109,120]
[330451297,1719421093036,-515.77461727,0.00044109,120]
[330451298,1719421093074,-500.0,0.00044109,120]
[330451299,1719421093113,-533.24,0.00044109,120]
[330451300,1719421093153,-2615.56,0.00044109,120]
[330451301,1719421093192,-500.0,0.00044109,120]
[330451302,1719421093229,-718.58,0.00044109,120]
[330451303,1719421093266,-3735.52,0.00044109,120]
[330451304,1719421093304,-500.0,0.00044109,120]
[330451305,1719421093341,-500.0,0.00044109,120]
[330451306,1719421093520,-500.0,0.00044109,120]
[330451307,1719421093558,-1399.08,0.00044109,120]
[330451308,1719421093598,-1892.58,0.00044109,120]
[330451309,1719421093638,-1217.99,0.00044109,120]
[330451310,1719421093677,-500.0,0.00044109,120]
[330451311,1719421093719,-500.0,0.00044109,120]
[330451312,1719421093762,-722.57,0.00044109,120]
[330451313,1719421093800,-1840.42,0.00044109,120]
[330451314,1719421093836,-500.0,0.00044109,120]
[330451315,1719421093885,-1189.73,0.00044109,120]
[330451316,1719421093925,-738.04,0.00044109,120]
[330451317,1719421093962,-500.0,0.00044109,120]
[330451318,1719421094004,-1595.46,0.00044109,120]
[330451319,1719421094048,-500.0,0.00044109,120]
[330451320,1719421094090,-3921.14,0.00044109,120]
[330451321,1719421094129,-500.0,0.00044109,120]
[330451322,1719421094171,-303.62229238,0.00044109,120]
[330451323,1719421094210,-511.52264994,0.00044109,120]
[330451324,1719421094248,-500.0,0.00044109,120]
[330451325,1719421094287,-1805.69,0.00044109,120]
[330451326,1719421094326,-500.0,0.00044109,120]
[330451327,1719421094363,-500.0,0.00044109,120]
[330451328,1719421094400,-2199.62,0.00044109,120]
[330451329,1719421094438,-500.0,0.00044109,120]
[330451330,1719421094475,-1036.58,0.00044109,120]
[330451331,1719421094515,-422.60497005,0.00044109,120]
[330451332,1719421094554,-503.6,0.00044109,120]
[330451333,1719421094591,-500.0,0.00044109,120]
[330451334,1719421094631,-2351.67,0.00044109,120]
[330451335,1719421094671,-541.29,0.00044109,120]
[330451336,1719421094712,-500.0,0.00044109,120]
[330451337,1719421094761,-500.0,0.00044109,120]
[330451338,1719421094802,-1916.47,0.00044109,120]
[330451339,1719421094841,-500.0,0.00044109,120]
[330451340,1719421094880,-3937.51,0.00044109,120]
[330451341,1719421094919,-500.0,0.00044109,120]
[330451342,1719421094957,-500.0,0.00044109,120]
[330451343,1719421094994,-500.0,0.00044109,120]
[330451344,1719421095034,-500.0,0.00044109,120]
[330451345,1719421095075,-500.0,0.00044109,120]
[330451346,1719421095114,-2302.42,0.00044109,120]
[330451347,1719421095152,-500.0,0.00044109,120]
[330451348,1719421095191,-500.0,0.00044109,120]
[330451349,1719421095227,-591.93,0.00044109,120]
[330451350,1719421095262,-500.0,0.00044109,120]
[330451351,1719421095300,-500.28,0.00044109,120]